[Event "Titled Tuesday Blitz April 4 Early 2023"]
[White "Arat, Ufuk Sezen"]
[Black "Bas Mas, Jose Joaquin"]
[WhiteFideId "6309089"]
[BlackFideId "22219064"]
[WhiteElo "2289"]
[BlackElo "2233"]
[Result "1-0"]
[Round "08"]
[TimeControl "180+2"]
[Date "2023.04.04"]
[WhiteClock "0:00:36"]
[BlackClock "0:00:30"]

1. e4 {[%clk 0:03:00]}  e6 {[%clk 0:02:59]} 2. d4 {[%clk 0:03:00]}  d5 {[%clk 0:03:00]} 3. Nc3 {[%clk 0:03:01]}  Nf6 {[%clk 0:02:59]} 4. Bg5 {[%clk 0:03:01]}  dxe4 {[%clk 0:02:59]} 5. Nxe4 {[%clk 0:03:01]}  Be7 {[%clk 0:03:00]} 6. Nxf6+ {[%clk 0:03:02]}  Bxf6 {[%clk 0:02:59]} 7. Bxf6 {[%clk 0:03:03]}  Qxf6 {[%clk 0:03:00]} 8. Nf3 {[%clk 0:03:03]}  O-O {[%clk 0:02:58]} 9. h4 {[%clk 0:03:00]}  h6 {[%clk 0:02:47]} 10. c3 {[%clk 0:02:58]}  b6 {[%clk 0:02:45]} 11. Bd3 {[%clk 0:02:59]}  Bb7 {[%clk 0:02:44]} 12. Qe2 {[%clk 0:02:57]}  Nd7 {[%clk 0:02:39]} 13. O-O-O {[%clk 0:02:57]}  c5 {[%clk 0:02:35]} 14. Kb1 {[%clk 0:02:54]}  Rac8 {[%clk 0:02:26]} 15. Be4 {[%clk 0:02:30]}  Bxe4+ {[%clk 0:02:19]} 16. Qxe4 {[%clk 0:02:31]}  cxd4 {[%clk 0:02:20]} 17. cxd4 {[%clk 0:02:24]}  Rfd8 {[%clk 0:01:59]} 18. g4 {[%clk 0:02:24]}  Nf8 {[%clk 0:01:54]} 19. Ne5 {[%clk 0:02:24]}  g6 {[%clk 0:01:29]} 20. g5 {[%clk 0:02:15]}  hxg5 {[%clk 0:01:24]} 21. hxg5 {[%clk 0:02:13]}  Qf5 {[%clk 0:01:25]} 22. Rh4 {[%clk 0:02:08]}  Qxe4+ {[%clk 0:01:11]} 23. Rxe4 {[%clk 0:02:09]}  Rd5 {[%clk 0:01:09]} 24. Rh1 {[%clk 0:02:06]}  Rcd8 {[%clk 0:01:02]} 25. Rhh4 {[%clk 0:01:58]}  Kg7 {[%clk 0:00:54]} 26. Ref4 {[%clk 0:01:55]}  Rxe5 {[%clk 0:00:51]} 27. dxe5 {[%clk 0:01:54]}  Rd5 {[%clk 0:00:46]} 28. Re4 {[%clk 0:01:54]}  Nd7 {[%clk 0:00:44]} 29. f4 {[%clk 0:01:54]}  Nc5 {[%clk 0:00:41]} 30. Re1 {[%clk 0:01:53]}  Rd2 {[%clk 0:00:39]} 31. Reh1 {[%clk 0:00:41]}  Kf8 {[%clk 0:00:37]} 32. Rh8+ {[%clk 0:00:40]}  Ke7 {[%clk 0:00:37]} 33. Ra8 {[%clk 0:00:37]}  Rd7 {[%clk 0:00:31]} 34. Rc1 {[%clk 0:00:36]}  Nd3 {[%clk 0:00:30]} 35. Rcc8 {[%clk 0:00:36]} 1-0


[Site "https://www.chess.com"]

[Event "Titled Tuesday Blitz April 4 Early 2023"]
[White "Burdalev, Kirill"]
[Black "Lach, Aleksandra"]
[WhiteFideId "14121913"]
[BlackFideId "1134299"]
[WhiteElo "2236"]
[BlackElo "2111"]
[Result "0-1"]
[Round "08"]
[TimeControl "180+2"]
[Date "2023.04.04"]
[WhiteClock "0:00:01"]
[BlackClock "0:00:36"]

1. d4 {[%clk 0:03:00]}  f5 {[%clk 0:02:58]} 2. g3 {[%clk 0:02:54]}  g6 {[%clk 0:02:55]} 3. Bg2 {[%clk 0:02:50]}  Nf6 {[%clk 0:02:55]} 4. Nf3 {[%clk 0:02:48]}  Bg7 {[%clk 0:02:55]} 5. b3 {[%clk 0:02:46]}  O-O {[%clk 0:02:55]} 6. Bb2 {[%clk 0:02:44]}  d5 {[%clk 0:02:55]} 7. O-O {[%clk 0:02:40]}  e6 {[%clk 0:02:42]} 8. Nbd2 {[%clk 0:02:34]}  Nbd7 {[%clk 0:02:37]} 9. c4 {[%clk 0:02:29]}  Ne4 {[%clk 0:02:31]} 10. Qc2 {[%clk 0:02:26]}  c6 {[%clk 0:02:21]} 11. Rac1 {[%clk 0:02:22]}  Qe7 {[%clk 0:02:18]} 12. e3 {[%clk 0:02:18]}  b6 {[%clk 0:02:08]} 13. Rfd1 {[%clk 0:02:12]}  Bb7 {[%clk 0:02:08]} 14. Ne5 {[%clk 0:01:49]}  g5 {[%clk 0:01:59]} 15. Nxd7 {[%clk 0:01:43]}  Qxd7 {[%clk 0:01:58]} 16. Nf3 {[%clk 0:01:43]}  g4 {[%clk 0:01:47]} 17. Ne5 {[%clk 0:01:41]}  Bxe5 {[%clk 0:01:47]} 18. dxe5 {[%clk 0:01:39]}  Qe7 {[%clk 0:01:45]} 19. cxd5 {[%clk 0:00:58]}  cxd5 {[%clk 0:01:42]} 20. Qc7 {[%clk 0:00:54]}  Rf7 {[%clk 0:01:42]} 21. Qxe7 {[%clk 0:00:51]}  Rxe7 {[%clk 0:01:43]} 22. Rc2 {[%clk 0:00:50]}  Kf7 {[%clk 0:01:23]} 23. Rdc1 {[%clk 0:00:49]}  Rd7 {[%clk 0:01:23]} 24. Rc7 {[%clk 0:00:48]}  Rd8 {[%clk 0:01:22]} 25. Bf1 {[%clk 0:00:45]}  Nc5 {[%clk 0:01:17]} 26. Rxd7+ {[%clk 0:00:40]}  Rxd7 {[%clk 0:01:15]} 27. b4 {[%clk 0:00:38]}  Ne4 {[%clk 0:01:12]} 28. Bb5 {[%clk 0:00:37]}  Re7 {[%clk 0:01:12]} 29. Bd4 {[%clk 0:00:30]}  a6 {[%clk 0:01:08]} 30. Bd3 {[%clk 0:00:24]}  b5 {[%clk 0:01:08]} 31. Kf1 {[%clk 0:00:20]}  Nd2+ {[%clk 0:01:07]} 32. Ke2 {[%clk 0:00:19]}  Nc4 {[%clk 0:01:07]} 33. Bc5 {[%clk 0:00:16]}  Rc7 {[%clk 0:01:07]} 34. Ra1 {[%clk 0:00:14]}  Na3 {[%clk 0:01:03]} 35. Rc1 {[%clk 0:00:13]}  Bc8 {[%clk 0:01:03]} 36. Rc3 {[%clk 0:00:11]}  Nc4 {[%clk 0:01:03]} 37. Bd4 {[%clk 0:00:10]}  Bd7 {[%clk 0:01:00]} 38. Bc2 {[%clk 0:00:09]}  Rc8 {[%clk 0:00:57]} 39. Bd3 {[%clk 0:00:08]}  Ra8 {[%clk 0:00:56]} 40. Bxc4 {[%clk 0:00:06]}  dxc4 {[%clk 0:00:55]} 41. Ra3 {[%clk 0:00:05]}  Bc6 {[%clk 0:00:53]} 42. Kd2 {[%clk 0:00:05]}  Bb7 {[%clk 0:00:52]} 43. Kc3 {[%clk 0:00:06]}  h5 {[%clk 0:00:52]} 44. Ra5 {[%clk 0:00:05]}  Bc6 {[%clk 0:00:50]} 45. Ra3 {[%clk 0:00:04]}  Bb7 {[%clk 0:00:37]} 46. Ra5 {[%clk 0:00:03]}  h4 {[%clk 0:00:38]} 47. a4 {[%clk 0:00:02]}  hxg3 {[%clk 0:00:36]} 48. hxg3 {[%clk 0:00:03]}  Bc6 {[%clk 0:00:36]} 49. axb5 {[%clk 0:00:03]}  Bxb5 {[%clk 0:00:36]} 50. Ra1 {[%clk 0:00:02]}  Rh8 {[%clk 0:00:36]} 51. Rf1 {[%clk 0:00:01]}  Rh2 {[%clk 0:00:36]} 0-1


[Site "https://www.chess.com"]

[Event "Titled Tuesday Blitz April 4 Early 2023"]
[White "Ruperez Benito, Antonio"]
[Black "Alberto, Manuel"]
[WhiteFideId "22245049"]
[BlackFideId "10100148"]
[WhiteElo "2273"]
[BlackElo "2166"]
[Result "1/2-1/2"]
[Round "08"]
[TimeControl "180+2"]
[Date "2023.04.04"]
[WhiteClock "0:00:20"]
[BlackClock "0:01:05"]

1. e4 {[%clk 0:03:00]}  c5 {[%clk 0:02:58]} 2. Nf3 {[%clk 0:02:44]}  d6 {[%clk 0:02:57]} 3. Bb5+ {[%clk 0:02:41]}  Bd7 {[%clk 0:02:57]} 4. Bxd7+ {[%clk 0:02:41]}  Nxd7 {[%clk 0:02:57]} 5. O-O {[%clk 0:02:41]}  Ngf6 {[%clk 0:02:55]} 6. Qe2 {[%clk 0:02:40]}  e6 {[%clk 0:02:54]} 7. c3 {[%clk 0:02:40]}  a6 {[%clk 0:02:53]} 8. d3 {[%clk 0:02:36]}  Be7 {[%clk 0:02:52]} 9. Nbd2 {[%clk 0:02:36]}  O-O {[%clk 0:02:51]} 10. d4 {[%clk 0:02:35]}  cxd4 {[%clk 0:02:50]} 11. cxd4 {[%clk 0:02:36]}  Re8 {[%clk 0:02:50]} 12. b3 {[%clk 0:02:35]}  b5 {[%clk 0:02:50]} 13. Bb2 {[%clk 0:02:35]}  Qb6 {[%clk 0:02:49]} 14. a4 {[%clk 0:02:29]}  Rab8 {[%clk 0:02:48]} 15. a5 {[%clk 0:02:29]}  Qb7 {[%clk 0:02:47]} 16. b4 {[%clk 0:02:27]}  Rbc8 {[%clk 0:02:35]} 17. Rac1 {[%clk 0:02:26]}  Rxc1 {[%clk 0:02:34]} 18. Rxc1 {[%clk 0:02:27]}  Rc8 {[%clk 0:02:33]} 19. Rxc8+ {[%clk 0:02:23]}  Qxc8 {[%clk 0:02:33]} 20. Qd3 {[%clk 0:02:23]}  h6 {[%clk 0:02:31]} 21. Nb1 {[%clk 0:02:15]}  Qc6 {[%clk 0:02:28]} 22. Nc3 {[%clk 0:02:14]}  d5 {[%clk 0:02:20]} 23. e5 {[%clk 0:02:14]}  Ne4 {[%clk 0:02:19]} 24. Nd2 {[%clk 0:01:42]}  Nxd2 {[%clk 0:02:16]} 25. Qxd2 {[%clk 0:01:43]}  Bxb4 {[%clk 0:02:15]} 26. Nxd5 {[%clk 0:01:40]}  Qxd5 {[%clk 0:01:43]} 27. Qxb4 {[%clk 0:01:36]}  Nxe5 {[%clk 0:01:42]} 28. Qe7 {[%clk 0:01:04]}  Nc4 {[%clk 0:01:35]} 29. Bc3 {[%clk 0:01:02]}  Qf5 {[%clk 0:01:34]} 30. h3 {[%clk 0:00:56]}  h5 {[%clk 0:01:32]} 31. Qb7 {[%clk 0:00:31]}  Kh7 {[%clk 0:01:22]} 32. Qxa6 {[%clk 0:00:27]}  Qd3 {[%clk 0:01:18]} 33. Bb4 {[%clk 0:00:23]}  Qb1+ {[%clk 0:01:16]} 34. Kh2 {[%clk 0:00:22]}  Qxb4 {[%clk 0:01:16]} 35. Qb7 {[%clk 0:00:17]}  Qxa5 {[%clk 0:01:13]} 36. Qxf7 {[%clk 0:00:17]}  Qb6 {[%clk 0:01:12]} 37. Qxh5+ {[%clk 0:00:17]}  Kg8 {[%clk 0:01:09]} 38. Qe8+ {[%clk 0:00:17]}  Kh7 {[%clk 0:01:09]} 39. Qh5+ {[%clk 0:00:18]}  Kg8 {[%clk 0:01:09]} 40. Qe8+ {[%clk 0:00:19]}  Kh7 {[%clk 0:01:05]} 41. Qh5+ {[%clk 0:00:20]} 1/2-1/2


[Site "https://www.chess.com"]

[Event "Titled Tuesday Blitz April 4 Early 2023"]
[White "Toktomushev, Teimur"]
[Black "Kiseleva, Arina"]
[WhiteFideId "14176726"]
[BlackFideId "4164989"]
[WhiteElo "2116"]
[BlackElo "1708"]
[Result "1-0"]
[Round "08"]
[TimeControl "180+2"]
[Date "2023.04.04"]
[WhiteClock "0:00:05"]
[BlackClock "0:00:01"]

1. d4 {[%clk 0:03:00]}  Nf6 {[%clk 0:02:59]} 2. c4 {[%clk 0:02:59]}  e6 {[%clk 0:02:59]} 3. Nf3 {[%clk 0:02:59]}  Bb4+ {[%clk 0:02:58]} 4. Bd2 {[%clk 0:02:59]}  Bxd2+ {[%clk 0:02:58]} 5. Qxd2 {[%clk 0:03:00]}  O-O {[%clk 0:02:57]} 6. Nc3 {[%clk 0:02:57]}  d5 {[%clk 0:02:56]} 7. e3 {[%clk 0:02:55]}  Qe7 {[%clk 0:02:55]} 8. cxd5 {[%clk 0:02:52]}  exd5 {[%clk 0:02:54]} 9. Bd3 {[%clk 0:02:49]}  Nc6 {[%clk 0:02:40]} 10. h3 {[%clk 0:02:30]}  Rd8 {[%clk 0:02:37]} 11. a3 {[%clk 0:02:08]}  Ne4 {[%clk 0:02:06]} 12. Qc2 {[%clk 0:02:04]}  f5 {[%clk 0:01:26]} 13. O-O {[%clk 0:01:55]}  Qf7 {[%clk 0:01:17]} 14. Ne5 {[%clk 0:01:32]}  Nxe5 {[%clk 0:01:13]} 15. dxe5 {[%clk 0:01:33]}  c6 {[%clk 0:00:53]} 16. Ne2 {[%clk 0:01:17]}  Re8 {[%clk 0:00:49]} 17. f4 {[%clk 0:01:13]}  Qh5 {[%clk 0:00:38]} 18. Nd4 {[%clk 0:00:38]}  a6 {[%clk 0:00:29]} 19. b4 {[%clk 0:00:33]}  Bd7 {[%clk 0:00:25]} 20. a4 {[%clk 0:00:28]}  Rac8 {[%clk 0:00:19]} 21. Qb2 {[%clk 0:00:11]}  Qh4 {[%clk 0:00:16]} 22. Rf3 {[%clk 0:00:09]}  c5 {[%clk 0:00:14]} 23. bxc5 {[%clk 0:00:09]}  Nxc5 {[%clk 0:00:14]} 24. Bxf5 {[%clk 0:00:06]}  Bxf5 {[%clk 0:00:10]} 25. Nxf5 {[%clk 0:00:07]}  Qh5 {[%clk 0:00:10]} 26. Nd6 {[%clk 0:00:06]}  Nd3 {[%clk 0:00:08]} 27. Qd4 {[%clk 0:00:06]}  Rc2 {[%clk 0:00:01]} 28. Qxd3 {[%clk 0:00:05]} 1-0


[Site "https://www.chess.com"]

[Event "Titled Tuesday Blitz April 4 Early 2023"]
[White "Pranav Anand"]
[Black "Yonal, Timur"]
[WhiteFideId "46626786"]
[BlackFideId "44115725"]
[WhiteElo "2389"]
[BlackElo "1966"]
[Result "1-0"]
[Round "08"]
[TimeControl "180+2"]
[Date "2023.04.04"]
[WhiteClock "0:02:03"]
[BlackClock "0:00:42"]

1. Nf3 {[%clk 0:03:00]}  d5 {[%clk 0:02:59]} 2. g3 {[%clk 0:03:01]}  c5 {[%clk 0:02:59]} 3. Bg2 {[%clk 0:03:01]}  Nc6 {[%clk 0:03:00]} 4. O-O {[%clk 0:03:02]}  e6 {[%clk 0:02:56]} 5. d3 {[%clk 0:03:03]}  Bd6 {[%clk 0:02:55]} 6. Nbd2 {[%clk 0:03:04]}  Nge7 {[%clk 0:02:56]} 7. e4 {[%clk 0:03:05]}  O-O {[%clk 0:02:56]} 8. Re1 {[%clk 0:03:05]}  f6 {[%clk 0:02:56]} 9. a4 {[%clk 0:03:01]}  a6 {[%clk 0:02:44]} 10. Nf1 {[%clk 0:02:59]}  Bd7 {[%clk 0:02:42]} 11. h4 {[%clk 0:02:59]}  b5 {[%clk 0:02:40]} 12. h5 {[%clk 0:02:57]}  Ne5 {[%clk 0:02:33]} 13. Nh4 {[%clk 0:02:56]}  f5 {[%clk 0:02:22]} 14. exd5 {[%clk 0:02:53]}  exd5 {[%clk 0:02:19]} 15. Bf4 {[%clk 0:02:50]}  Qc7 {[%clk 0:02:17]} 16. h6 {[%clk 0:02:47]}  N7g6 {[%clk 0:02:14]} 17. hxg7 {[%clk 0:02:44]}  Kxg7 {[%clk 0:02:12]} 18. Nxg6 {[%clk 0:02:44]}  hxg6 {[%clk 0:02:09]} 19. Bxd5 {[%clk 0:02:44]}  Rh8 {[%clk 0:02:06]} 20. axb5 {[%clk 0:02:40]}  a5 {[%clk 0:01:57]} 21. c3 {[%clk 0:02:24]}  Bxb5 {[%clk 0:01:48]} 22. d4 {[%clk 0:02:23]}  Ng4 {[%clk 0:01:42]} 23. Bxd6 {[%clk 0:02:17]}  Qxd6 {[%clk 0:01:42]} 24. Qf3 {[%clk 0:02:18]}  Bxf1 {[%clk 0:01:32]} 25. Bxa8 {[%clk 0:02:15]}  Bc4 {[%clk 0:01:08]} 26. dxc5 {[%clk 0:02:14]}  Qf6 {[%clk 0:01:05]} 27. Rad1 {[%clk 0:02:06]}  Qg5 {[%clk 0:01:03]} 28. Rd7+ {[%clk 0:02:04]}  Kh6 {[%clk 0:00:57]} 29. Qh1+ {[%clk 0:02:05]}  Qh5 {[%clk 0:00:49]} 30. Qxh5+ {[%clk 0:02:05]}  Kxh5 {[%clk 0:00:50]} 31. Bf3 {[%clk 0:02:05]}  Kg5 {[%clk 0:00:48]} 32. c6 {[%clk 0:02:06]}  Nh2 {[%clk 0:00:46]} 33. Bg2 {[%clk 0:02:05]}  Bf1 {[%clk 0:00:42]} 34. Rxf1 {[%clk 0:02:03]} 1-0


[Site "https://www.chess.com"]

[Event "Titled Tuesday Blitz April 4 Early 2023"]
[White "Averjanov, Alexey"]
[Black "Kohler, Aran"]
[WhiteFideId "14109867"]
[BlackFideId "1002856"]
[WhiteElo "2671"]
[BlackElo "2295"]
[Result "1-0"]
[Round "08"]
[TimeControl "180+2"]
[Date "2023.04.04"]
[WhiteClock "0:01:34"]
[BlackClock "0:00:29"]

1. d4 {[%clk 0:03:00]}  d5 {[%clk 0:02:59]} 2. c4 {[%clk 0:03:00]}  c6 {[%clk 0:02:59]} 3. e3 {[%clk 0:03:00]}  Nf6 {[%clk 0:02:59]} 4. Bd3 {[%clk 0:02:59]}  dxc4 {[%clk 0:02:53]} 5. Bxc4 {[%clk 0:02:59]}  b5 {[%clk 0:02:50]} 6. Bd3 {[%clk 0:02:59]}  Bb7 {[%clk 0:02:49]} 7. Nf3 {[%clk 0:02:59]}  Nbd7 {[%clk 0:02:48]} 8. O-O {[%clk 0:02:58]}  a6 {[%clk 0:02:49]} 9. e4 {[%clk 0:02:58]}  e6 {[%clk 0:02:49]} 10. Nbd2 {[%clk 0:02:58]}  c5 {[%clk 0:02:49]} 11. e5 {[%clk 0:02:57]}  Nd5 {[%clk 0:02:47]} 12. Ne4 {[%clk 0:02:57]}  Qb6 {[%clk 0:02:39]} 13. dxc5 {[%clk 0:02:53]}  Nxc5 {[%clk 0:02:38]} 14. Nxc5 {[%clk 0:02:53]}  Bxc5 {[%clk 0:02:36]} 15. Qe2 {[%clk 0:02:53]}  h6 {[%clk 0:02:29]} 16. a3 {[%clk 0:02:51]}  b4 {[%clk 0:02:02]} 17. Bd2 {[%clk 0:02:46]}  a5 {[%clk 0:01:56]} 18. Rfc1 {[%clk 0:02:35]}  Be7 {[%clk 0:01:33]} 19. Rc4 {[%clk 0:02:27]}  Ba6 {[%clk 0:01:25]} 20. Rg4 {[%clk 0:02:25]}  Bxd3 {[%clk 0:01:23]} 21. Qxd3 {[%clk 0:02:25]}  g5 {[%clk 0:01:17]} 22. axb4 {[%clk 0:02:19]}  Nxb4 {[%clk 0:01:11]} 23. Bxb4 {[%clk 0:02:14]}  Bxb4 {[%clk 0:01:12]} 24. h4 {[%clk 0:02:11]}  Rd8 {[%clk 0:01:11]} 25. Qe2 {[%clk 0:02:03]}  Be7 {[%clk 0:01:04]} 26. h5 {[%clk 0:02:01]}  Rd5 {[%clk 0:00:53]} 27. Rc1 {[%clk 0:01:54]}  O-O {[%clk 0:00:53]} 28. Rgc4 {[%clk 0:01:51]}  Rc5 {[%clk 0:00:50]} 29. Rxc5 {[%clk 0:01:45]}  Bxc5 {[%clk 0:00:49]} 30. Nh2 {[%clk 0:01:45]}  Rb8 {[%clk 0:00:47]} 31. Ng4 {[%clk 0:01:43]}  Bf8 {[%clk 0:00:46]} 32. Nf6+ {[%clk 0:01:42]}  Kg7 {[%clk 0:00:33]} 33. Qd3 {[%clk 0:01:40]}  Bc5 {[%clk 0:00:28]} 34. Qh7+ {[%clk 0:01:34]}  Kf8 {[%clk 0:00:29]} 35. Nd7+ {[%clk 0:01:34]} 1-0


[Site "https://www.chess.com"]

[Event "Titled Tuesday Blitz April 4 Early 2023"]
[White "Estremera Panos, Sergio"]
[Black "EREBUNI91"]
[WhiteFideId "2200864"]
[WhiteElo "2253"]
[BlackElo "2633"]
[Result "0-1"]
[Round "08"]
[TimeControl "180+2"]
[Date "2023.04.04"]
[WhiteClock "0:02:25"]
[BlackClock "0:01:45"]

1. d4 {[%clk 0:02:58]}  Nf6 {[%clk 0:02:59]} 2. c4 {[%clk 0:02:57]}  b6 {[%clk 0:02:59]} 3. Nc3 {[%clk 0:02:58]}  Bb7 {[%clk 0:02:59]} 4. f3 {[%clk 0:02:57]}  d5 {[%clk 0:02:59]} 5. cxd5 {[%clk 0:02:55]}  Nxd5 {[%clk 0:03:00]} 6. e4 {[%clk 0:02:55]}  Nxc3 {[%clk 0:03:01]} 7. bxc3 {[%clk 0:02:56]}  e6 {[%clk 0:03:01]} 8. Bd3 {[%clk 0:02:56]}  Be7 {[%clk 0:03:00]} 9. Ne2 {[%clk 0:02:56]}  O-O {[%clk 0:03:00]} 10. O-O {[%clk 0:02:57]}  c5 {[%clk 0:03:00]} 11. Be3 {[%clk 0:02:56]}  cxd4 {[%clk 0:03:00]} 12. cxd4 {[%clk 0:02:55]}  Nc6 {[%clk 0:03:01]} 13. f4 {[%clk 0:02:54]}  Rc8 {[%clk 0:02:57]} 14. e5 {[%clk 0:02:53]}  Nb4 {[%clk 0:02:55]} 15. f5 {[%clk 0:02:53]}  Nxd3 {[%clk 0:02:46]} 16. Qxd3 {[%clk 0:02:54]}  exf5 {[%clk 0:02:23]} 17. Qxf5 {[%clk 0:02:42]}  Qd5 {[%clk 0:02:11]} 18. Nf4 {[%clk 0:02:40]}  Qe4 {[%clk 0:02:11]} 19. Qxe4 {[%clk 0:02:40]}  Bxe4 {[%clk 0:02:12]} 20. d5 {[%clk 0:02:38]}  Bg5 {[%clk 0:02:09]} 21. d6 {[%clk 0:02:37]}  Rc3 {[%clk 0:02:04]} 22. Rae1 {[%clk 0:02:35]}  Bc6 {[%clk 0:01:53]} 23. e6 {[%clk 0:02:33]}  fxe6 {[%clk 0:01:49]} 24. Nxe6 {[%clk 0:02:31]}  Rxf1+ {[%clk 0:01:46]} 25. Rxf1 {[%clk 0:02:28]}  Bxe3+ {[%clk 0:01:46]} 26. Kh1 {[%clk 0:02:28]}  Rc1 {[%clk 0:01:45]} 27. Rxc1 {[%clk 0:02:26]}  Bxc1 {[%clk 0:01:45]} 28. Nd8 {[%clk 0:02:25]}  Bd7 {[%clk 0:01:45]} 29. Nb7 {[%clk 0:02:25]} 0-1


[Site "https://www.chess.com"]

[Event "Titled Tuesday Blitz April 4 Early 2023"]
[White "Thecourseoisildur"]
[Black "Rose, Felix"]
[BlackFideId "5105722"]
[WhiteElo "2490"]
[BlackElo "2039"]
[Result "1-0"]
[Round "08"]
[TimeControl "180+2"]
[Date "2023.04.04"]
[WhiteClock "0:01:07"]
[BlackClock "0:00:12"]

1. e4 {[%clk 0:03:00]}  c5 {[%clk 0:02:57]} 2. Nf3 {[%clk 0:03:01]}  g6 {[%clk 0:02:57]} 3. d4 {[%clk 0:03:00]}  cxd4 {[%clk 0:02:58]} 4. Qxd4 {[%clk 0:03:01]}  Nf6 {[%clk 0:02:58]} 5. Nc3 {[%clk 0:02:58]}  Nc6 {[%clk 0:02:58]} 6. Qa4 {[%clk 0:02:59]}  d6 {[%clk 0:02:58]} 7. e5 {[%clk 0:02:59]}  dxe5 {[%clk 0:02:59]} 8. Nxe5 {[%clk 0:03:00]}  Bd7 {[%clk 0:03:00]} 9. Nxd7 {[%clk 0:02:54]}  Nxd7 {[%clk 0:03:01]} 10. Bb5 {[%clk 0:02:55]}  Bg7 {[%clk 0:03:00]} 11. Bxc6 {[%clk 0:02:53]}  bxc6 {[%clk 0:02:59]} 12. Qxc6 {[%clk 0:02:51]}  O-O {[%clk 0:02:57]} 13. O-O {[%clk 0:02:50]}  Rc8 {[%clk 0:02:56]} 14. Qa6 {[%clk 0:02:49]}  Bxc3 {[%clk 0:02:47]} 15. bxc3 {[%clk 0:02:47]}  Qb6 {[%clk 0:02:47]} 16. Qa3 {[%clk 0:02:38]}  Qc5 {[%clk 0:02:44]} 17. Qxc5 {[%clk 0:02:33]}  Nxc5 {[%clk 0:02:44]} 18. Ba3 {[%clk 0:02:32]}  Rc6 {[%clk 0:02:32]} 19. Rab1 {[%clk 0:02:31]}  Rfc8 {[%clk 0:02:31]} 20. Bxc5 {[%clk 0:02:28]}  Rxc5 {[%clk 0:02:30]} 21. Rb7 {[%clk 0:02:29]}  R8c7 {[%clk 0:02:28]} 22. Rfb1 {[%clk 0:02:08]}  Rxc3 {[%clk 0:02:26]} 23. Rxc7 {[%clk 0:02:06]}  Rxc7 {[%clk 0:02:25]} 24. Rb2 {[%clk 0:02:06]}  a5 {[%clk 0:02:18]} 25. Kf1 {[%clk 0:02:06]}  Kg7 {[%clk 0:02:13]} 26. Ke2 {[%clk 0:02:05]}  a4 {[%clk 0:02:08]} 27. Kd3 {[%clk 0:02:06]}  e5 {[%clk 0:02:04]} 28. Rb4 {[%clk 0:02:00]}  Rd7+ {[%clk 0:01:59]} 29. Ke3 {[%clk 0:01:56]}  Rc7 {[%clk 0:01:55]} 30. Kd2 {[%clk 0:01:52]}  Rd7+ {[%clk 0:01:52]} 31. Kc1 {[%clk 0:01:52]}  Ra7 {[%clk 0:01:44]} 32. Kb2 {[%clk 0:01:50]}  f5 {[%clk 0:01:34]} 33. Ka3 {[%clk 0:01:50]}  Rd7 {[%clk 0:01:25]} 34. c4 {[%clk 0:01:42]}  Rd2 {[%clk 0:01:24]} 35. Rb2 {[%clk 0:01:41]}  Rd4 {[%clk 0:01:16]} 36. Rc2 {[%clk 0:01:39]}  e4 {[%clk 0:01:16]} 37. c5 {[%clk 0:01:34]}  f4 {[%clk 0:01:06]} 38. c6 {[%clk 0:01:33]}  Rd8 {[%clk 0:00:28]} 39. Kxa4 {[%clk 0:01:27]}  Kf6 {[%clk 0:00:25]} 40. Kb5 {[%clk 0:01:26]}  Ke5 {[%clk 0:00:25]} 41. c7 {[%clk 0:01:25]}  Rc8 {[%clk 0:00:22]} 42. Kc6 {[%clk 0:01:25]}  Kd4 {[%clk 0:00:22]} 43. Kb7 {[%clk 0:01:18]}  Rxc7+ {[%clk 0:00:21]} 44. Kxc7 {[%clk 0:01:18]}  Kd3 {[%clk 0:00:18]} 45. Rc6 {[%clk 0:01:15]}  e3 {[%clk 0:00:16]} 46. fxe3 {[%clk 0:01:15]}  fxe3 {[%clk 0:00:17]} 47. Re6 {[%clk 0:01:13]}  e2 {[%clk 0:00:17]} 48. Rxe2 {[%clk 0:01:11]}  Kxe2 {[%clk 0:00:18]} 49. a4 {[%clk 0:01:12]}  Kf2 {[%clk 0:00:18]} 50. a5 {[%clk 0:01:13]}  Kxg2 {[%clk 0:00:19]} 51. a6 {[%clk 0:01:14]}  Kxh2 {[%clk 0:00:18]} 52. a7 {[%clk 0:01:15]}  g5 {[%clk 0:00:18]} 53. a8=Q {[%clk 0:01:16]}  g4 {[%clk 0:00:19]} 54. Qh8 {[%clk 0:01:14]}  g3 {[%clk 0:00:16]} 55. Qxh7+ {[%clk 0:01:14]}  Kg1 {[%clk 0:00:15]} 56. Kd6 {[%clk 0:01:12]}  g2 {[%clk 0:00:15]} 57. Ke5 {[%clk 0:01:12]}  Kf1 {[%clk 0:00:12]} 58. Qf5+ {[%clk 0:01:12]}  Ke2 {[%clk 0:00:10]} 59. Qg4+ {[%clk 0:01:12]}  Kf1 {[%clk 0:00:10]} 60. Qf3+ {[%clk 0:01:12]}  Kg1 {[%clk 0:00:10]} 61. Kf4 {[%clk 0:01:11]}  Kh2 {[%clk 0:00:11]} 62. Qg3+ {[%clk 0:01:07]}  Kh1 {[%clk 0:00:11]} 63. Qh3+ {[%clk 0:01:07]}  Kg1 {[%clk 0:00:12]} 64. Kf3 {[%clk 0:01:07]} 1-0


[Site "https://www.chess.com"]

[Event "Titled Tuesday Blitz April 4 Early 2023"]
[White "babbilator"]
[Black "Goncalves, Davi Sulzbacher"]
[BlackFideId "2154510"]
[WhiteElo "2255"]
[BlackElo "2182"]
[Result "1-0"]
[Round "08"]
[TimeControl "180+2"]
[Date "2023.04.04"]
[WhiteClock "0:01:02"]
[BlackClock "0:02:20"]

1. e4 {[%clk 0:03:00]}  c5 {[%clk 0:03:00]} 2. Nc3 {[%clk 0:03:00]}  e6 {[%clk 0:03:00]} 3. Nf3 {[%clk 0:02:59]}  d5 {[%clk 0:03:01]} 4. exd5 {[%clk 0:02:16]}  exd5 {[%clk 0:03:01]} 5. Bb5+ {[%clk 0:02:15]}  Nc6 {[%clk 0:03:01]} 6. d4 {[%clk 0:02:08]}  Nf6 {[%clk 0:03:00]} 7. O-O {[%clk 0:02:04]}  Be7 {[%clk 0:02:59]} 8. Ne5 {[%clk 0:02:01]}  O-O {[%clk 0:02:37]} 9. Bxc6 {[%clk 0:01:57]}  bxc6 {[%clk 0:02:31]} 10. Nxc6 {[%clk 0:01:55]}  Qc7 {[%clk 0:02:31]} 11. Nxe7+ {[%clk 0:01:50]}  Qxe7 {[%clk 0:02:32]} 12. Bg5 {[%clk 0:01:49]}  h6 {[%clk 0:02:31]} 13. Nxd5 {[%clk 0:01:40]}  Qd6 {[%clk 0:02:31]} 14. Nxf6+ {[%clk 0:01:26]}  Kh8 {[%clk 0:02:31]} 15. Qh5 {[%clk 0:01:19]}  Bf5 {[%clk 0:02:20]} 16. Bxh6 {[%clk 0:01:07]}  Bg6 {[%clk 0:02:20]} 17. Qh4 {[%clk 0:01:02]} 1-0


[Site "https://www.chess.com"]